Cogmind - Beta 16.1 *** ADVENTURER MODE // 2026.03.15 @ 13:56:39 Player: Ms. V3-11A Result: Destroyed by Y-54 Guardian with Flak Gun Performance ------------- Evolutions (3) 1500 Regions Visited (5) 1000 Robots Destroyed (105) 525 Value Destroyed (3645) 3645 Prototype IDs (14) 280 Alien Tech Used (0) 0 Bonus (124) 124 TOTAL SCORE: 7074 Bonus ------- Follower Combat Kills 124 Cogmind --------- Core Integrity 0/700 Matter 14/300 Energy 100/100 System Corruption 9% Temperature Cool (12) Movement Core (700) Ox13 Location -7/Storage Parts ------- > --- POWER (2) -------- (None) > --- PROPULSION (3) --- (None) > --- UTILITY (6) ------ Improved Cooling System High-capacity Storage Unit Targeting Computer > --- WEAPON (2) ------- (None) > --- INVENTORY (20) --- Wheel Huge Storage Unit High-capacity Matter Pod (0) Machine Analyzer Kinecellerator Transmission Jammer Hacking Suite Hacking Suite System Shield Makeshift System Restoration Module Cobbler Unit V3-11A's Pendant Advanced EMP Blaster Heavy Flail Peak State ------------ > --- POWER ------------ Improved Deuterium Engine Heavy Deuterium Engine > --- PROPULSION ------- Light Treads Light Treads Light Treads > --- UTILITY ---------- Improved Cooling System High-capacity Storage Unit Targeting Computer Improved Light Armor Plating Improved Shield Generator Hacking Suite > --- WEAPON ----------- Flak Gun Precision Assault Rifle > --- INVENTORY -------- Heavy Deuterium Engine Improved Cooling System Huge Storage Unit High-capacity Matter Pod Machine Analyzer Transmission Jammer Light Armor Plating Improved Light Armor Plating Hacking Suite Hacking Suite System Shield Makeshift System Restoration Module Cobbler Unit V3-11A's Pendant Flak Gun Flak Gun Flak Gun Advanced EMP Blaster Heavy Flail [Rating: 43] Favorites ----------- Power Improved Ion Engine Engine Improved Ion Engine Power Core Light Nuclear Core Propulsion Light Treads Treads Light Treads Leg Aluminum Leg Wheel Wheel Utility Targeting Computer Device Improved Shield Generator Storage High-capacity Storage Unit Processor Targeting Computer Hackware Hacking Suite Protection Improved Light Armor Plating Weapon Assault Rifle Energy Gun Particle Gun Ballistic Gun Assault Rifle Launcher Grenade Launcher Impact Weapon Heavy Flail Build | -11 -10 -10 -8 -7 -7 ------- Run | Yrd Mat Sub Mat Fac Sto Slots Evolved 6 | . . . 4 2 . Power 1 | . . . . 1 . Propulsion 1 | . . . 1 . . Utility 4 | . . . 3 1 . Weapon . | . . . . . . Parts Attached 64 | 2 3 7 32 9 11 Power 12 | . 1 2 3 4 2 Engine 11 | . 1 2 2 4 2 Core 1 | . . . 1 . . Reactor . | . . . . . . Propulsion 14 | 2 . 1 10 . 1 Treads 10 | 2 . 1 7 . . Leg 3 | . . . 2 . 1 Wheel 1 | . . . 1 . . Hover . | . . . . . . Flight . | . . . . . . Utility 20 | . 2 2 12 2 2 Device 11 | . 1 1 7 1 1 Storage 2 | . 1 . 1 . . Processor 1 | . . . 1 . . Hackware 1 | . . . . 1 . Protection 5 | . . 1 3 . 1 Artifact . | . . . . . . Weapon 18 | . . 2 7 3 6 Energy Gun 1 | . . . 1 . . Energy Cannon . | . . . . . . Ballistic Gun 12 | . . 1 6 1 4 Ballistic Cannon . | . . . . . . Launcher 4 | . . 1 . 2 1 Special Weapon . | . . . . . . Impact Weapon 1 | . . . . . 1 Slashing Weapon . | . . . . . . Piercing Weapon . | . . . . . . Special Melee Weapon . | . . . . . . Unidentified Prototypes 4 | . . 1 . 2 1 Parts Lost 32 | . . 3 11 1 17 Power 5 | . . 2 . . 3 Propulsion 9 | . . 1 4 . 4 Utility 8 | . . . 3 . 5 Weapon 10 | . . . 4 1 5 Highest Loss Streak 17 | . . 2 4 1 17 To Critical Strikes . | . . . . . . Average Backups 14 | 6 7 11 16 17 18 Power . | 1 1 . . 1 . Propulsion . | 4 . . . . . Utility 10 | . 3 7 12 13 14 Weapon 2 | 1 1 3 3 2 3 Tool/Special . | . . . . . . Unused Backups 24 | . 2 2 8 1 11 Power 1 | . . . . 1 . Propulsion . | . . . . . . Utility 15 | . 2 . 2 . 11 Weapon 8 | . . 2 6 . . Tool/Special . | . . . . . . Average Slot Usage (%) 95 | . 99 95 91 98 91 Engine 11 | . 14 9 8 14 13 Treads 24 | . 28 28 21 23 19 Device 13 | . 13 11 14 15 13 Storage 10 | . 14 14 9 7 7 Processor 4 | . . . 8 7 7 Hackware 1 | . . . . 6 6 Protection 5 | . . 2 8 7 6 Ballistic Gun 20 | . 28 26 17 14 13 Peak Build Rating 43 | 6 7 13 26 38 43 Average Rating 20 | 5 6 10 22 33 37 On Entrance 15 | 6 6 7 13 25 38 Avg Prop Armor Cover (%) 4 | . . . 4 . . Naked Turns . | . . . . . . Heaviest Build 78 | 13 29 34 62 77 78 Greatest Support 60 | 40 40 40 60 60 60 Greatest Overweight (x) 17 | . . . 3 1 17 Average Overweight (x) . | . . . 1 1 1 Largest Inventory Capacity 20 | 8 15 15 20 20 20 Average Capacity 16 | 8 9 15 19 20 20 Most Carried 20 | 6 9 15 20 20 20 Average Carried 14 | 4 7 12 17 18 19 Final Capacity 20 | 8 15 15 20 20 20 Final Carried 20 | 2 9 14 18 20 15 Class Distribution -------------------- 59% | Mutant 23% | Scavenger-Mutant 17% | Hacker-Mutant Dominant Class ---------------- Mutant | -10/Materials Mutant | -10/Subcaves Mutant | -8/Materials Scavenger-Mutant | -7/Factory Hacker-Mutant | -7/Storage Resources | -11 -10 -10 -8 -7 -7 ----------- Run | Yrd Mat Sub Mat Fac Sto Matter Collected 3230 | 200 117 697 1137 468 611 Remotely . | . . . . . . Salvage Created 4032 | . 285 554 1600 724 869 Parts 238 | . 30 36 94 36 42 Haulers Intercepted 7 | . 1 . 3 1 2 Recyclers Shooed 4 | . . . 1 2 1 Parts Field Recycled . | . . . . . . Retrieved Matter . | . . . . . . Parts Self-Destructed 14 | . . 14 . . . Prevented . | . . . . . . Parts Restored . | . . . . . . Kills | -11 -10 -10 -8 -7 -7 ------- Run | Yrd Mat Sub Mat Fac Sto Combat Hostiles Destroyed 86 | . 10 9 34 15 18 Melee 1 | . . . . . 1 Guns 85 | . 10 9 34 15 17 Classes Destroyed 15 | . 4 2 6 2 1 Worker 4 | . 3 . 1 . . Builder 1 | . . . . . 1 Hauler 7 | . 1 . 3 1 2 Recycler 4 | . . . 1 2 1 Mechanic 1 | . . . 1 . . Operator 2 | . . . 2 . . Swarmer 17 | . 9 1 7 . . Grunt 35 | . 1 2 15 10 7 Duelist 2 | . . . 2 . . Sentry 15 | . . . 9 . 6 Demolisher 1 | . . . 1 . . Hunter 3 | . . . . 1 2 Programmer 7 | . . . . 4 3 Cobbler 1 | . . 1 . . . Subdweller 6 | . . 6 . . . Best Kill Streak 6 | . 4 2 6 3 5 Combat Bots Only 6 | . 3 2 6 3 5 Max Kills in Single Turn 2 | . 2 1 2 1 2 Gunslinging 1 | . 1 . 1 . . Exploded . | . . . . . . Melee 1 | . . . . . 1 Uniques/NPCs Destroyed . | . . . . . . Combat | -11 -10 -10 -8 -7 -7 -------- Run | Yrd Mat Sub Mat Fac Sto Hostile Shots Fired 1270 | . 34 65 296 106 769 Missed 435 | . 16 16 85 32 286 Hits 835 | . 18 49 211 74 483 Melee 6 | . . . 6 . . Projectile 829 | . 18 49 205 74 483 AOE 5 | . . . 5 . . Critical Strikes 15 | . . 1 10 4 . Part Disruptions 1 | . . . . 1 . Damage Taken 6160 | . 108 650 1974 667 2761 Core 1057 | . 29 56 270 54 648 Absorbed by Shields 1047 | . . . 505 230 312 Ignored by Resistances 2215 | . 39 184 717 263 1012 Regen/Repaired (Parts) 724 | . 8 . 288 . 428 Core Remaining (%) 72 | 100 . 66 50 . . Volleys Fired 359 | . 28 79 135 57 60 Largest 2 | . 2 2 2 2 2 Hottest 90 | . 40 50 90 51 56 Shots Fired 662 | . 56 149 241 108 108 Gun 649 | . 56 140 241 104 108 Cannon . | . . . . . . Launcher 13 | . . 9 . 4 . Special . | . . . . . . Kinetic 636 | . 56 140 228 104 108 Thermal 13 | . . . 13 . . Explosive 13 | . . 9 . 4 . Electromagnetic . | . . . . . . Robot Hit Streak 43 | . 18 34 43 38 42 Robot Miss Streak 3 | . 2 1 2 2 3 Penetration Max . | . . . . . . Secondary Targets 17 | . 2 3 8 2 2 Max Gunslinging Chain 1 | . 1 1 1 1 1 Shots Hit Robots 530 | . 33 96 211 92 98 Core Hits 308 | . 16 39 79 56 118 Critical Kills 3 | . 1 . 2 . . Critical Parts Destroyed 3 | . . . 2 1 . Critical Strikes 7 | . 1 . 5 1 . Burn 1 | . . . 1 . . Destroy 6 | . 1 . 4 1 . Melee Attacks 1 | . . . . . 1 Impact 1 | . . . . . 1 Slashing . | . . . . . . Piercing . | . . . . . . Sneak Attacks . | . . . . . . Combat Hostiles . | . . . . . . Follow-up Attacks . | . . . . . . Damage Inflicted 9335 | . 367 1006 3593 1913 2456 Guns 9247 | . 365 1006 3579 1907 2390 Cannons . | . . . . . . Explosions . | . . . . . . Melee . | . . . . . . Ramming 88 | . 2 . 14 6 66 Kinetic 9077 | . 365 1006 3409 1907 2390 Thermal 170 | . . . 170 . . Explosive . | . . . . . . Electromagnetic . | . . . . . . Impact . | . . . . . . Slashing . | . . . . . . Piercing . | . . . . . . Highest Corruption 9 | . . . . 5 9 Average Corruption 5 | . . . . 3 6 Corruption Purged . | . . . . . . Corruption Blocked . | . . . . . . Effects 50 | . . . . 17 33 Message Errors 12 | . . . . 7 5 Matter Fused 9 | . . . . . 9 Heat Flow Errors 7 | . . . . 3 4 Energy Discharges 8 | . . . . 2 6 Parts Rejected 1 | . . . . . 1 Data Loss (minor) 4 | . . . . 1 3 Data Loss (major) 5 | . . . . 3 2 Misfires 2 | . . . . 1 1 Alerts 2 | . . . . . 2 Overload Shots . | . . . . . . Overflow Damage . | . . . . . . Projectiles . | . . . . . . Explosions . | . . . . . . Melee . | . . . . . . Knockbacks . | . . . . . . Impact . | . . . . . . Kinetic . | . . . . . . Secondary . | . . . . . . Self-Inflicted Damage . | . . . . . . Shots . | . . . . . . Rammed 16 | . 1 . 2 1 12 Targets Rammed 16 | . 1 . 2 1 12 Kicked . | . . . . . . Crushed . | . . . . . . Highest Temperature 220 | . 6 . 113 220 193 Average Temperature 44 | . 6 . 32 99 60 Received Heat Transfer 2558 | . 18 207 1061 236 1036 Siege Activations . | . . . . . . Martial Activations . | . . . . . . Shielding Activations . | . . . . . . Robots Disrupted . | . . . . . . Combat Hostiles . | . . . . . . Robots Corrupted . | . . . . . . Combat Hostiles . | . . . . . . Parts Fried . | . . . . . . Impact Corruptions . | . . . . . . Robots Melted . | . . . . . . Combat Hostiles . | . . . . . . Parts Melted 1 | . . 1 . . . Heat Transferred 481 | . . . 481 . . Parts Sabotaged . | . . . . . . Parts Stolen . | . . . . . . Parts Stripped . | . . . . . . Power Chain Reactions . | . . . . . . Alert | -11 -10 -10 -8 -7 -7 ------- Run | Yrd Mat Sub Mat Fac Sto Maximum Alert Level . | . . . . . . Low Security (%) 100 | 100 100 . 100 100 100 Level 1 . | . . . . . . Level 2 . | . . . . . . Level 3 . | . . . . . . Level 4 . | . . . . . . Level 5 . | . . . . . . High Security . | . . . . . . Max Security . | . . . . . . Peak Influence 167 | . 110 . 167 80 87 Initial 25 | . . . . 25 . Average 31 | . 19 . 44 20 29 Influence Increases 2559 | . 321 121 1147 456 514 Destroy 0b10 Robot/C 1720 | . 200 100 760 300 360 Destroy 0b10 Robot/NC 95 | . 20 . 40 15 20 Destroy Leader 434 | . 32 20 176 82 124 Allied During Kill 8 | . . 1 7 . . Successful Hack 83 | . 39 . 23 21 . Disable Machine 45 | . . . 18 18 9 Destroy Structure 24 | . . . 3 20 1 Partial Spotted 15 | . . . 15 . . Lose Combat Pursuer 135 | . 30 . 105 . . Influence Decreases 2539 | . 321 121 1081 522 494 Entered New Map 41 | . . . . 41 . Time Decay 2188 | . 321 121 891 471 384 Lost Part 230 | . . . 110 10 110 Lost Ally 80 | . . . 80 . . Squads Dispatched 17 | . . . 4 8 5 Investigation 2 | . . . . 1 1 Extermination 6 | . . . . 4 2 Reinforcement 3 | . . . . 2 1 Assault . | . . . . . . Garrison 6 | . . . 4 1 1 Intercept . | . . . . . . Searches Triggered . | . . . . . . Construction Impeded . | . . . . . . Haulers Reinforced 1 | . . . . 1 . Active Scanning Responses . | . . . . . . Cargo Convoy Interrupts . | . . . . . . Stealth | -11 -10 -10 -8 -7 -7 --------- Run | Yrd Mat Sub Mat Fac Sto Distress Signals 14 | . 2 . 9 1 2 Communications Jammed . | . . . . . . Distress Signals . | . . . . . . Times Spotted 140 | . 23 13 60 20 24 Peak Tracking Total 9 | . 5 2 9 4 7 Tactical Retreats 5 | . 1 . 4 . . Traps | -11 -10 -10 -8 -7 -7 ------- Run | Yrd Mat Sub Mat Fac Sto Traps Triggered 3 | . . . 1 1 1 Indirectly . | . . . . . . Trap Hack Attempts . | . . . . . . Triggered . | . . . . . . Disarmed . | . . . . . . Reprogrammed . | . . . . . . Reused . | . . . . . . Traps Extracted . | . . . . . . Installed 1 | . . . 1 . . Triggered . | . . . . . . Most Traps Carried 1 | . . . 1 . . Machines | -11 -10 -10 -8 -7 -7 ---------- Run | Yrd Mat Sub Mat Fac Sto Machines Disabled 5 | . . . 2 2 1 Max in Single Turn 2 | . . . 1 2 1 Garrison Access 2 | . . . 1 . 1 Machines Repaired . | . . . . . . Machines Dismantled . | . . . . . . Machines Sabotaged . | . . . . . . Overloaded Fab Kills . | . . . . . . Hacking | -11 -10 -10 -8 -7 -7 --------- Run | Yrd Mat Sub Mat Fac Sto Machines Accessed 37 | . 10 1 14 7 5 Terminals 23 | . 8 . 8 5 2 Fabricators 1 | . . . . 1 . Repair Stations 4 | . 1 . 2 . 1 Recycling Units 3 | . 1 . 1 . 1 Scanalyzers 3 | . . . 2 1 . Garrison Access 2 | . . . 1 . 1 Total Hacks 121 | . 39 4 41 17 20 Successful 82 | . 23 4 27 11 17 Failed 38 | . 16 . 13 6 3 Catastrophic 2 | . 1 . . 1 . Database Lockouts 1 | . . . 1 . . Manual 53 | . 17 . 17 10 9 Terminals 77 | . 33 . 26 13 5 Fabricators 2 | . . . . 2 . Repair Stations 20 | . 5 . 7 . 8 Recycling Units 9 | . 1 . 2 . 6 Scanalyzers 7 | . . . 5 2 . Garrison Access 2 | . . . 1 . 1 Terminal Hacks 22 | . 10 4 5 2 1 Record 4 | . . 4 . . . Robot Schematic 1 | . . . . 1 . Robot Analysis 3 | . 2 . 1 . . Prototype ID Bank 7 | . 4 . 2 . 1 Branch Access Points 1 | . . . 1 . . Terminal Index 2 | . 1 . . 1 . Repair Station Index 1 | . 1 . . . . Security Status 1 | . 1 . . . . Registered Components 1 | . 1 . . . . Zone Layout 1 | . . . 1 . . Fabricator Hacks 2 | . . . . 2 . Load Schematic 1 | . . . . 1 . Build 1 | . . . . 1 . Repair Station Hacks 17 | . 3 . 6 . 8 Scan Component 9 | . 2 . 3 . 4 Repair 8 | . 1 . 3 . 4 Recycling Unit Hacks 3 | . 1 . 1 . 1 Retrieve Components 3 | . 1 . 1 . 1 Scanalyzer 6 | . . . 4 2 . Insert Component 1 | . . . 1 . . Analyze 1 | . . . 1 . . Retrieve Study 4 | . . . 2 2 . Garrison Access Hacks 2 | . . . 1 . 1 Seal Access 2 | . . . 1 . 1 Unauthorized Hacks 30 | . 9 . 10 5 6 Terminals 27 | . 9 . 10 5 3 Botnet 10 | . 4 . 3 2 1 Skim 17 | . 5 . 7 3 2 Fabricators . | . . . . . . Repair Stations . | . . . . . . Recycling Units 3 | . . . . . 3 Monitor 1 | . . . . . 1 Reject 1 | . . . . . 1 Mask 1 | . . . . . 1 Scanalyzers . | . . . . . . Garrison Access . | . . . . . . Data Cores Recovered 1 | . . . 1 . . Used 1 | . . . 1 . . Hacking Detections 30 | . 9 . 10 7 4 Full Trace Events 2 | . . . . 1 1 Feedback Events . | . . . . . . Feedback Blocked . | . . . . . . Robot Schematics Acquired 1 | . . . . 1 . Robots Built 2 | . . . . 2 . Authchips . | . . . . . . Time 116 | . . . . 116 . Total Robot Build Rating 6 | . . . . 6 . Part Schematics Acquired 1 | . . . 1 . . Parts Built . | . . . . . . Authchips . | . . . . . . Time . | . . . . . . Total Part Build Rating . | . . . . . . Part Studies Acquired 4 | . . . 2 2 . Parts Repaired 8 | . 1 . 3 . 4 Time 224 | . 18 . 84 . 122 Parts Recycled . | . . . . . . Recycled Matter . | . . . . . . Retrieved Matter . | . . . . . . Retrieved Components 23 | . 5 . 9 . 9 Parts Scanalyzed 1 | . . . 1 . . Part Schematics Acquired 1 | . . . 1 . . Parts Damaged . | . . . . . . Bothacking | -11 -10 -10 -8 -7 -7 ------------ Run | Yrd Mat Sub Mat Fac Sto Used RIF Installer . | . . . . . . Robots Hacked . | . . . . . . Non-combat . | . . . . . . Combat . | . . . . . . Robot Hacks Applied . | . . . . . . Relay Couplers Released 2 | . . . . . 2 Programmers 2 | . . . . . 2 Fabnet Peak Effective % . | . . . . . . Robots Rewired . | . . . . . . Allies Hacked . | . . . . . . Hacks Repelled . | . . . . . . Allies | -11 -10 -10 -8 -7 -7 -------- Run | Yrd Mat Sub Mat Fac Sto Total Allies 6 | . . 4 . 2 . Largest Group 4 | . . 4 4 2 . Highest-Rated Group 76 | . . 76 76 26 . Highest-Rated Ally 19 | . . 19 19 13 . Total Orders 2 | . . . . 2 . ROAM 2 | . . . . 2 . Ally Attacks 25 | . . 9 16 . . Total Damage 370 | . . 182 188 . . Kills 7 | . . 3 4 . . Allies Corrupted . | . . . . . . Allies Melted . | . . . . . . Intel | -11 -10 -10 -8 -7 -7 ------- Run | Yrd Mat Sub Mat Fac Sto Active Infowar (turns) 1899 | . 1616 283 . . . Structural 1899 | . 1616 283 . . . Robot Analysis Total 3 | . 2 . 1 . . Derelict Logs Recovered 1 | . . 1 . . . Drone Launches . | . . . . . . Drone Recoveries . | . . . . . . Exploration | -11 -10 -10 -8 -7 -7 ------------- Run | Yrd Mat Sub Mat Fac Sto Turns Passed 9281 | 5 1631 2180 2961 1506 998 Spaces Moved 3675 | 1 785 1178 811 608 292 Core 2 | . . . . . 2 Treads 3672 | 1 785 1178 811 608 289 Legs 1 | . . . . . 1 Wheels . | . . . . . . Hover . | . . . . . . Flight . | . . . . . . Fastest Speed 160 | 160 160 160 160 200 200 Average Speed 183 | 160 160 160 217 200 206 Slowest Speed 900 | 160 160 160 320 200 900 Overloaded Moves . | . . . . . . Propulsion Burnouts . | . . . . . . Robots Hopped . | . . . . . . Potential Cave-ins 8 | . . . . 8 . Cave-ins Triggered . | . . . . . . Exploration Rate (%) 51 | 2 98 69 72 14 55 Regions Visited 5 Branch Regions 2 Pre-discovered Areas 5 | . 1 3 1 . . Known Exits Taken 2 | . . 1 . 1 . Unknown Exits Taken 3 | 1 1 . 1 . . Scrap Searched 9 | . . 9 . . . Spaces Dug . | . . . . . . Terrain Destroyed 47 | . . 8 . 39 . Melee . | . . . . . . Projectile . | . . . . . . AOE 47 | . . 8 . 39 . Terrain Rammed . | . . . . . . Walls Destroyed . | . . . . . . Machines Disabled . | . . . . . . Actions | -11 -10 -10 -8 -7 -7 --------- Run | Yrd Mat Sub Mat Fac Sto Total 5591 | 6 1110 1335 1788 792 560 Wait 1345 | . 282 58 752 97 156 Move 3670 | . 784 1177 810 607 292 Hop . | . . . . . . Pick Up 51 | . 9 8 18 9 7 Fast Attach 32 | . 1 3 19 2 7 Attach 29 | 2 . 3 12 5 7 Detach 10 | . . 1 7 1 1 Swap 24 | . 2 2 9 5 6 Drop 51 | 4 3 4 23 8 9 Fire 359 | . 28 79 135 57 60 Melee 1 | . . . . . 1 Ram 1 | . . . . . 1 Kick . | . . . . . . Crush 15 | . 1 . 2 1 11 Escape Stasis 2 | . . . . . 2 Rewire . | . . . . . . Trap 1 | . . . 1 . . Miscellaneous . | . . . . . . Route ------- -11/Scrapyard -10/Materials (discovered 5 exits: *Mat x3 / [*Min] / *Sub) -10/Subcaves -8/Materials (discovered 2 exits: *Fac x2) -7/Factory (discovered 4 exits: Fac / *Sto / Low x2) -7/Storage (discovered 2 exits: Fac / *Rec) History --------- Turn | Location | Event 6 | -11/Scrapyard | Discovered new exit (range 0) 6 | -11/Scrapyard | Entered Materials 232 | -10/Materials | Discovered new exit (range 7) 308 | -10/Materials | Build established: Mutant 585 | -10/Materials | Discovered new exit (range 9) 598 | -10/Materials | Discovered new exit (range 15) 656 | -10/Materials | Learned Storage non-interactive machine intel 711 | -10/Materials | Learned 2 Storage zone layouts 754 | -10/Materials | Identified exit to Materials 810 | -10/Materials | Learned 4 Recycling zone layouts 822 | -10/Materials | Learned Storage garrison access intel 880 | -10/Materials | Learned location of 1 exit from Recycling 1465 | -10/Materials | Repaired Broken Targeting Computer 1637 | -10/Materials | Entered Subcaves 1638 | -10/Subcaves | Identified exit to Materials 1655 | -10/Subcaves | Shifting Twisted Machinery released Humpback 1664 | -10/Subcaves | Shifting Twisted Machinery released Sub. Power Source 1672 | -10/Subcaves | Ambushed by angry Subdweller bent on revenge 1768 | -10/Subcaves | Shifting Twisted Machinery released Flamer 2223 | -10/Subcaves | Shifting Twisted Machinery released Sub. Machine Gun 2322 | -10/Subcaves | Visited triangular shrine 2332 | -10/Subcaves | Found Prototype Device 2332 | -10/Subcaves | Identified V3-11A's Pendant 2337 | -10/Subcaves | Befriended Subdweller 2462 | -10/Subcaves | Shifting Twisted Machinery released Battle Rifle 2493 | -10/Subcaves | A swath of the cavern ceiling suddenly collapsed 2634 | -10/Subcaves | Visited Clippyterm 2639 | -10/Subcaves | Learned location of Extension (-5) 2639 | -10/Subcaves | Learned location of Section 7 (-2) 2844 | -10/Subcaves | Learned location of Storage (-7) 2862 | -10/Subcaves | Befriended Subdweller 2952 | -10/Subcaves | Befriended Subdweller 2952 | -10/Subcaves | Befriended Subdweller 3198 | -10/Subcaves | A swath of the cavern ceiling suddenly collapsed 3519 | -10/Subcaves | Disturbed a concealed Subdweller 3817 | -10/Subcaves | Entered Materials 3817 | -8/Materials | Accompanied by 4 allies 3817 | -8/Materials | Evolved 4 slots: Propulsion x1, Utility x3 4203 | -8/Materials | Repaired Lgt. Treads 4292 | -8/Materials | Garrison activated, responded to threat 4688 | -8/Materials | Learned 2 Lower Caves zone layouts 4741 | -8/Materials | Learned location of 1 exit from Storage 4785 | -8/Materials | Learned location of 1 exit from Storage 4865 | -8/Materials | Learned 4 Factory zone layouts 4871 | -8/Materials | Learned location of Zion (-7) 4885 | -8/Materials | Learned Storage security intel 4907 | -8/Materials | Learned 4 Recycling zone layouts 4940 | -8/Materials | Learned Storage security intel 4983 | -8/Materials | Learned Factory stockpile data 5303 | -8/Materials | Central database locked down 5376 | -8/Materials | Discovered new exit (range 14) 5539 | -8/Materials | Build established: Scavenger-Mutant 5841 | -8/Materials | Garrison activated, responded to threat 6143 | -8/Materials | Lost 4 parts (1n2u1w) 6278 | -8/Materials | Repaired Lgt. Treads+ 6311 | -8/Materials | Repaired Cooling System 6351 | -8/Materials | Build established: Mutant 6674 | -8/Materials | Build established: Scavenger-Mutant 6697 | -8/Materials | Discovered new exit (range 16) 6778 | -8/Materials | Entered Factory 6778 | -7/Factory | Evolved 2 slots: Power x1, Utility x1 6779 | -7/Factory | Identified exit to Storage 6779 | -7/Factory | Identified exit to Lower Caves 6780 | -7/Factory | Identified exit to Factory 7074 | -7/Factory | Fabricated W-25 Informer? 7891 | -7/Factory | Build established: Hacker-Mutant 8195 | -7/Factory | Garrison activated, responded to threat 8284 | -7/Factory | Entered Storage 8285 | -7/Storage | Identified exit to Recycling 8288 | -7/Storage | Loaded intel: 26 non-interactive machine locations 8289 | -7/Storage | Loaded intel: 1 garrison access location 8373 | -7/Storage | Repaired Lgt. Treads+ 8400 | -7/Storage | Repaired Lgt. Treads+ 8446 | -7/Storage | Repaired Imp. Shield Generator 8743 | -7/Storage | Used back door to open Recycling access 9054 | -7/Storage | Repaired Lgt. Treads+ 9122 | -7/Storage | Garrison activated, responded to threat 9236 | -7/Storage | Core integrity fell below 50% 9255 | -7/Storage | Core integrity fell below 20% 9282 | -7/Storage | Destroyed by Y-54 Guardian with Flak Gun Last Messages --------------- 09243_ R-06 Scavenger collects Terrain Scanner. 09244_ K-01 Serf collects debris. 09244_ Y-54 Guardian destroyed. 09245_ K-01 Serf collects debris. 09247_ R-06 Scavenger collects Unknown Power Core. 09250_ R-06 Scavenger collects Imp. Light Armor Plating. 09251_ System corrupted: IFF burst signal emitted. 09255_ Flak Gun+ destroyed. 09257_ >> MONITOR: Recycling Unit S001 accepting Relay Coupler [Heavy] (100%). 09260_ >> MONITOR: Recycling Unit S001 accepting Imp. Target Analyzer (89%). 09263_ >> MONITOR: Recycling Unit S001 accepting Lgt. Ion Engine (92%). 09265_ Acquired Wheel. 09266_ >> MONITOR: Recycling Unit S001 accepting Relay Coupler [NC] (100%). 09268_ System corrupted: IFF burst signal emitted. 09275_ Slammed into Y-54 Guardian. 09280_ Hvy. Deuterium Engine destroyed. Map ----- +----------------------------------------------------+ | | | | | | | | | | | ????????????????????????????????????????? | | ????????????????????????????????????????? | | ????????????????????????????????????"""?" | | ????????????????????????????????????"""?" | | ????????????????????????????????????"""?" | | ????????????????????????????????????????? | | ??????????????????????##+###????????????? | | ?????????????????????? ###??????????? | | ?????????????????????? ???????????? | | ???????????? ????????? ???????????? | | ???????????? ????????? ????????????? | | ????????????# ???????? ?????????????? | | ????????????# ????????# #?????????????? | | ??????????###+######### #?????????????? | | ??????????# # #????????"????? | | ??????"???# #|! #?????????????? | | ??????????# #%* #?????????????? | | ??????"???# """ """% + = #?????????????? | | ??????????# """ """[ # #?????????????? | | ??????????# """Y"Y%=% # #######?????""" | | ??????????# !%@=*!!=# #?"?? | | ??????????#####"!"##### #######?????"?? | | ????????#?????#"G"#??# #??????????""" | | ????????# ????#"""#??# #????????????? | | ???"""??# ############ T #????????????? | | ???"""??+^^ #????# # | | ???"""??# ###### #????# ##### | | ????????# !#????###+######?# #???? | | ???????## ^ ! #???????? ### ##### | | ???????# ^^"" *!###?????? """ ""# ##### | | ???"""?+ """=%[%#?????? """ T"# # # | | ???"""?# """=!=!#?????? """ ""# + T | | ???"""?# ^""" ! #?????? ### ##""# | | ???????# """ #?????? """ #?# ## # | | ???????# #?????? """ #?# ## # | | ???????# #?????? """ #?# ## # | | ???????# ![ #?????? #?# ##### | | ???????# #### ##??????######?# ##### | | ???# ### ???# #??????????????#####???? | | ???#? ??##+########???????????????? | | ???# ??#*[ #???????????????? | | ???# ### =! #???????????????? | | ???# + / [ = #???????????????? | | ???# ##### # ! #???????????????? | | ???# ????# ###########???????????????? | +----------------------------------------------------+ Best States ------------- Heat Dissipation 61 Energy Generation 29 Energy Capacity 500 Matter Stores 300 Matter Capacity 300 Sight Range 16 Terrain Scan Density 10 Armor Coverage 150 Resistance: KI 20 Resistance: TH 20 Resistance: EX 20 Resistance: EM 20 Resistance: I 20 Resistance: S 20 Resistance: P 20 Evasion (%) 40 Targeting Accuracy 5 Recoil Reduction 3 Offensive Hacking 20 Item Schematics ----------------- Imp. Shield Generator | -8/Materials | Scanalyzed Robot Schematics ------------------ W-25 Informer | -7/Factory | Hacked Fabricated ------------ W-25 Informer | x2 | -7/Factory Repaired ---------- Targeting Computer | 20% | -10/Materials | Broken Lgt. Treads | 18% | -8/Materials Lgt. Treads | 8% | -8/Materials Cooling System | 8% | -8/Materials Lgt. Treads | 1% | -7/Storage Lgt. Treads | 18% | -7/Storage Imp. Shield Generator | 10% | -7/Storage Lgt. Treads | 1% | -7/Storage Studied --------- Lgt. Treads | -8/Materials | Hacked Imp. Ion Engine | -8/Materials | Hacked Deuterium Engine | -7/Factory | Hacked Flak Gun | -7/Factory | Hacked Alien Tech Used ----------------- None Achievements -------------- None Challenges ------------ None Game ------ Seed NullPhaseClaw Manual? 0 Play Time 01:00:46 Cumulative 499.9 hours Start 2026.03.15 @ 12:38:07 End 2026.03.15 @ 13:56:39 Sessions 1 Manual Loads 0 Difficulty Adventurer Special Mode None Game No. 356 Rogue 63 Adventurer 267 Explorer 26 Win Type - Total 2 Types 2/0/0/0/0/0/0/0/0/0 Lore% 83 Gallery% 71 Achievement% 53 Wizard Run 0 Options --------- Layout 2 ASCII 0 Keyboard 0 Movement Mouse Keybinds 0 Fullscreen 0 Font 16/Cog Map View 64x51 Zoom Use 0% Tactical HUD 1 Map Filters NONE Filters BRIGHTNESS(115)|SATURATION(100)|LOW_CONTRAST(0,16,30) Steam 1 RUN: 8d7d9d98-c34b-49ca-a9d0-cdf5d64590fc